bitfinex-derivatives/quotes_SOLF0:USTF0_20241010
["timestamp","ask_amount","ask_price","bid_price","bid_amount"]
[1728577616770,3.6186,138.31,138.27,9.3993]
[1728577617268,102.74961999,138.35,138.27,9.3993]
[1728577617973,27.81,138.34,138.25,12.1862]
[1728577618171,3.6197,138.27,138.25,5.78]
[1728577618372,3.67566563,138.29,138.23,1.57162]
[1728577618570,5.78,138.3,138.24,3.6202]
[1728577618770,3.6191,138.29,138.23,1.57162]
[1728577619165,3.6191,138.29,138.25,3.6199]
[1728577620473,3.6191,138.29,138.23,1.57162]
[1728577621069,3.6188,138.3,138.27,3.6195]
[1728577621474,5.78,138.32,138.24,1.3432]
[1728577622574,3.6189,138.3,138.27,3.6195]
[1728577623077,3.6189,138.3,138.24,1.3432]
[1728577623269,3.6189,138.3,138.26,3.6197]
[1728577623468,5.78,138.32,138.26,3.6197]
[1728577623773,5.78,138.32,138.24,4.9634]
[1728577623970,5.78,138.32,138.24,1.3432]
[1728577624273,5.78,138.32,138.27,3.6194]
[1728577624576,3.6189,138.3,138.27,3.6194]
[1728577624776,5.78,138.33,138.24,1.3432]
[1728577624979,5.78,138.33,138.28,3.6192]
[1728577625172,3.6186,138.31,138.28,3.6192]
[1728577625369,27.81,138.37,138.26,5.78]
[1728577625576,9.33613661,138.36,138.27,29.1473]
[1728577626272,3.6181,138.33,138.27,29.1473]
[1728577626472,3.6181,138.33,138.29,3.6188]
[1728577628983,3.6182,138.32,138.29,3.6188]
[1728577629278,9.33613661,138.36,138.3,3.6187]
[1728577629879,3.6184,138.32,138.29,3.6189]
[1728577630181,9.33613661,138.36,138.29,3.6189]
[1728577630576,3.6183,138.32,138.29,3.6189]
[1728577631076,3.6183,138.32,138.3,6.30873166]
[1728577631275,3.6183,138.32,138.3,9.92743166]
[1728577631586,3.6183,138.32,138.31,6.30873166]
[1728577631776,3.6183,138.32,138.3,3.6187]
[1728577631972,3.618,138.33,138.28,3.6192]
[1728577632177,37.14613661,138.36,138.28,3.6192]
[1728577632474,37.14613661,138.36,138.29,6.30804153]
[1728577632672,3.6186,138.31,138.29,6.30804153]
[1728577632874,27.81,138.34,138.3,6.30804153]
[1728577633074,27.81,138.34,138.26,5.78]
[1728577633388,27.81,138.34,138.27,6.28776647]
[1728577633580,3.619,138.3,138.28,6.28776647]
[1728577633779,3.619,138.3,138.26,9.3996]
[1728577633986,3.6191,138.29,138.27,6.28955014]
[1728577634188,3.6191,138.29,138.28,6.28955014]
[1728577635578,5.78,138.32,138.28,6.28955014]
[1728577635891,5.78,138.32,138.27,17.37]
[1728577636088,3.6185,138.31,138.28,9.91772977]
[1728577636286,3.6185,138.31,138.29,6.29862977]
[1728577636487,3.6185,138.31,138.28,3.6191]
[1728577636683,5.78,138.32,138.27,17.37]
[1728577636994,9.3983,138.32,138.29,3.6189]
[1728577637286,9.3983,138.32,138.3,6.30351211]
[1728577637588,3.6185,138.31,138.29,3.6189]
[1728577637798,3.6185,138.31,138.3,6.3035679]
[1728577638483,5.78,138.32,138.3,6.3035679]
[1728577638684,3.6183,138.32,138.29,3.6189]
[1728577638890,3.6183,138.32,138.3,6.30530341]
[1728577639091,3.6183,138.32,138.29,3.6189]
[1728577639291,3.6183,138.32,138.3,6.30663239]
[1728577639488,3.618,138.33,138.3,3.6187]
[1728577639690,3.618,138.33,138.31,6.30471856]
[1728577639885,3.618,138.33,138.27,17.37]
[1728577640086,3.618,138.33,138.28,6.30472179]
[1728577640288,3.618,138.33,138.3,3.6185]
[1728577640594,3.618,138.33,138.31,6.30472179]
[1728577640787,3.6178,138.34,138.3,3.6185]
[1728577640984,108.52961999,138.35,138.31,6.30483202]
[1728577641294,17.37,138.34,138.26,5.78]
[1728577641491,3.6186,138.31,138.27,6.30574172]
[1728577641693,3.6186,138.31,138.28,6.30574172]
[1728577641992,3.6186,138.31,138.29,6.30574172]
[1728577642194,3.6186,138.31,138.28,3.6191]
[1728577642195,3.6186,138.31,138.3,6.30574172]
[1728577642692,108.52961999,138.35,138.25,5.78]
[1728577642693,3.6191,138.29,138.25,5.78]
[1728577642893,3.6191,138.29,138.26,9.93122979]
[1728577643197,3.6191,138.29,138.25,5.78]
[1728577643198,3.619,138.29,138.27,6.31172979]
[1728577643384,17.37,138.32,138.28,6.31172979]
[1728577643582,17.37,138.32,138.29,6.31172979]
[1728577643899,3.6189,138.3,138.27,3.6195]
[1728577644294,3.6189,138.3,138.28,6.315422]
[1728577644500,3.6189,138.3,138.29,6.315422]
[1728577644696,17.37,138.34,138.29,6.315422]
[1728577644902,3.6185,138.31,138.28,3.6191]
[1728577645196,17.37,138.34,138.29,6.31502933]
[1728577645389,17.37,138.34,138.3,6.31502933]
[1728577645590,17.37,138.34,138.25,23.15]
[1728577645795,17.37,138.34,138.26,6.31391588]
[1728577645995,3.6184,138.32,138.28,3.619]
[1728577646195,17.37,138.34,138.29,6.31391588]
[1728577646401,108.52961999,138.35,138.3,6.31391588]
[1728577646592,3.618,138.33,138.31,6.31391588]
[1728577646796,3.618,138.33,138.3,3.6186]
[1728577647103,3.618,138.33,138.31,6.31367504]
[1728577647295,3.618,138.33,138.3,3.6186]
[1728577647497,3.618,138.33,138.31,6.31412658]
[1728577647799,3.618,138.33,138.32,6.31329301]
[1728577647998,3.6178,138.34,138.32,6.31329301]
[1728577648193,3.6178,138.34,138.31,3.6184]
[1728577648400,108.52961999,138.35,138.32,6.31213628]
[1728577648600,3.6182,138.33,138.27,17.37]
[1728577648795,3.6182,138.33,138.28,6.31214425]
[1728577648996,3.6182,138.33,138.29,6.31214425]
[1728577649195,3.6182,138.33,138.3,9.93074425]
[1728577649399,3.6182,138.33,138.31,6.31214425]
[1728577649598,3.6182,138.33,138.32,6.31214425]
[1728577653998,3.6182,138.33,138.3,3.6187]
[1728577654199,3.6182,138.33,138.31,6.3176951]
[1728577654395,3.6182,138.33,138.32,6.3176951]
[1728577655607,3.6178,138.34,138.32,6.3176951]
[1728577655907,3.6178,138.34,138.31,3.6183]
[1728577656101,3.6178,138.34,138.32,6.316212]
[1728577656296,0.12502,138.35,138.28,17.37]
[1728577656607,0.12502,138.35,138.31,17.37]
[1728577656807,0.12502,138.35,138.32,6.3155499]
[1728577657007,3.74252,138.35,138.33,6.3155499]
[1728577657216,0.12502,138.35,138.34,6.3155499]
[1728577657506,0.12502,138.35,138.34,6.3107172]
[1728577657507,3.74242,138.35,138.34,6.3107172]
[1728577657702,3.74242,138.35,138.32,3.618]
[1728577657903,3.74242,138.35,138.33,6.31165494]
[1728577658110,3.74242,138.35,138.32,3.618]
[1728577658307,3.74242,138.35,138.33,6.31033498]
[1728577658508,3.74242,138.35,138.32,3.618]
[1728577658805,3.74242,138.35,138.33,6.30970145]
[1728577659014,3.6177,138.34,138.31,3.6183]
[1728577659211,0.12502,138.35,138.32,6.30940939]
[1728577659408,0.12502,138.35,138.33,6.30940939]
[1728577659616,0.12502,138.35,138.29,9.3989]
[1728577659911,0.12502,138.35,138.3,6.30981624]
[1728577660111,0.12502,138.35,138.31,6.30981624]
[1728577660312,0.12502,138.35,138.32,6.30981624]
[1728577660509,0.12502,138.35,138.29,9.3989]
[1728577660710,0.12502,138.35,138.3,6.30902765]
[1728577660902,17.37,138.34,138.31,6.30902765]
[1728577661109,23.15,138.34,138.31,6.30902765]
[1728577661411,3.6187,138.3,138.27,3.6193]
[1728577661614,3.6187,138.3,138.28,6.31073269]
[1728577661808,3.6187,138.3,138.29,6.31073269]
[1728577663116,7.15684422,138.3,138.29,6.31073269]
[1728577666418,3.53814422,138.3,138.25,2.724]
[1728577666710,5.78,138.3,138.26,6.31799385]
[1728577666913,3.64036023,138.29,138.27,6.31832219]
[1728577667123,7.25936023,138.29,138.28,6.31832219]
[1728577667413,5.78,138.3,138.24,5.78]
[1728577667609,17.37,138.29,138.25,6.31798427]
[1728577667812,17.37,138.29,138.26,6.31798427]
[1728577668013,17.37,138.29,138.23,0.12502]
[1728577668203,3.6202,138.25,138.24,6.31986902]
[1728577670316,3.6203,138.24,138.23,0.12502]
[1728577670719,3.6203,138.24,138.23,6.44104643]
[1728577671212,3.6203,138.24,138.23,0.12502]
[1728577672017,17.37,138.25,138.17,1.52062]
[1728577672222,17.37,138.23,138.18,6.31262579]
[1728577672408,17.37,138.23,138.19,6.31262579]
[1728577672609,3.6213,138.21,138.2,6.31262579]
[1728577672818,3.5581856,138.22,138.2,6.31262579]
[1728577673017,17.37,138.25,138.21,6.31239626]
[1728577673213,17.37,138.25,138.17,1.52062]
[1728577673413,3.6209,138.22,138.19,3.6216]
[1728577673615,3.68276736,138.23,138.2,6.30964982]
[1728577673809,17.37,138.25,138.19,3.6216]
[1728577674014,17.37,138.25,138.2,6.30902052]
[1728577674219,17.37,138.25,138.19,3.6216]
[1728577674421,17.37,138.25,138.2,6.30641354]
[1728577674617,17.37,138.25,138.19,3.6216]
[1728577674820,17.37,138.25,138.2,6.30642148]
[1728577675023,17.37,138.25,138.19,3.6216]
[1728577675416,3.6208,138.23,138.19,3.6216]
[1728577675610,3.63802304,138.23,138.19,3.6216]
[1728577675822,17.37,138.25,138.19,3.6216]
[1728577677527,3.6208,138.22,138.19,3.6216]
[1728577678727,3.57391337,138.23,138.17,1.52062]
[1728577678929,3.6211,138.21,138.18,9.92739666]
[1728577679117,3.6211,138.21,138.19,6.30569666]
[1728577679424,17.37,138.21,138.17,0.12502]
[1728577679629,17.37,138.21,138.18,6.30544599]
[1728577679920,17.37,138.21,138.17,0.12502]
[1728577680121,3.6219,138.18,138.17,0.12502]
[1728577681116,3.6217,138.19,138.17,0.12502]
[1728577681329,5.78,138.22,138.17,0.12502]
[1728577681826,3.6216,138.19,138.17,0.12502]
[1728577682928,3.6219,138.18,138.17,0.12502]
[1728577687933,3.621,138.22,138.17,3.74712]
[1728577688134,9.34087386,138.23,138.17,0.12502]
[1728577688333,9.34087386,138.23,138.17,2.88822]
[1728577688334,5.78,138.23,138.17,2.88822]
[1728577688631,3.6212,138.21,138.18,3.6217]
[1728577689335,3.6212,138.21,138.17,6.51022]
[1728577689532,5.78,138.23,138.17,2.88822]
[1728577689732,17.37,138.23,138.17,2.88822]
[1728577689935,5.78,138.24,138.17,2.88822]
[1728577690128,3.6215,138.2,138.17,2.88822]
[1728577691132,3.6219,138.18,138.17,0.12502]
[1728577693428,20.9919,138.18,138.17,0.12502]
[1728577697137,20.9919,138.18,138.12,2.85188]
[1728577697138,3.6223,138.17,138.12,1.52698]
[1728577697341,17.37,138.16,138.12,1.52698]
[1728577698038,3.6228,138.15,138.12,5.15028]
[1728577700042,17.37,138.18,138.12,5.15028]
[1728577700234,3.6225,138.16,138.12,6.47648]
[1728577700540,17.37,138.18,138.12,6.47648]
[1728577700739,3.6227,138.15,138.12,6.47648]
[1728577701241,3.6231,138.14,138.12,2.85318]
[1728577701640,23.15,138.16,138.12,0.12518]
[1728577701940,3.6232,138.13,138.12,0.12518]
[1728577702643,20.9932,138.13,138.12,0.12518]
[1728577703336,3.6234,138.12,138.11,0.12502]
[1728577703544,5.78,138.12,138.05,0.12502]
[1728577703730,17.37,138.11,138.05,0.12502]
[1728577703940,3.6243,138.09,138.05,0.12502]
[1728577704130,17.37,138.11,138.05,0.12502]
[1728577704339,17.37,138.11,138.05,3.75022]
[1728577704536,3.6244,138.09,138.05,3.75022]
[1728577704739,3.6244,138.09,138.05,0.12502]
[1728577705039,3.6244,138.09,138.05,3.75012]
[1728577705737,3.6245,138.08,138.05,3.75012]
[1728577705933,3.6245,138.08,138.05,0.12502]
[1728577706243,17.37,138.11,138.05,0.12502]
[1728577707640,17.37,138.11,138.06,3.6249]
[1728577708145,3.6244,138.09,138.05,3.75012]
[1728577708844,3.6246,138.08,138.05,3.75012]
[1728577709040,3.6551267,138.07,138.05,0.12502]
[1728577709232,3.625,138.06,138.05,0.12502]
[1728577711141,23.15,138.09,138.05,0.12502]
[1728577711341,5.78,138.09,138.05,0.12502]
[1728577711850,3.6247,138.08,138.05,3.75012]
[1728577712842,3.6249,138.07,138.05,0.12502]
[1728577713348,5.78,138.09,138.05,0.12502]
[1728577713847,23.15,138.09,138.05,0.12502]
[1728577714843,5.78,138.09,138.05,0.12502]
[1728577716041,3.6249,138.07,138.05,0.12502]
[1728577716245,5.78,138.09,138.05,0.12502]
[1728577716751,3.6247,138.08,138.05,3.75012]
[1728577717749,3.625,138.07,138.05,0.12502]
[1728577718350,3.625,138.06,138.05,0.12502]
[1728577718650,5.78,138.1,138.05,0.12502]
[1728577718843,3.6249,138.07,138.05,0.12502]
[1728577719254,3.55578346,138.06,138.05,0.12502]
[1728577719550,3.625,138.06,138.05,0.12502]
[1728577720650,23.15,138.1,138.05,0.12502]
[1728577721638,3.6247,138.08,138.05,0.12502]
[1728577722156,5.78,138.1,138.05,0.12502]
[1728577723297,3.6244,138.09,138.05,3.75002]
[1728577723774,3.6244,138.09,138.06,3.6249]
[1728577724171,9.404,138.1,138.07,3.6247]
[1728577724373,5.78,138.1,138.05,0.12502]
[1728577724679,3.6244,138.09,138.05,0.12502]
[1728577724877,3.6244,138.09,138.06,3.6249]
[1728577726089,3.6239,138.11,138.05,0.12502]
[1728577726591,3.624,138.1,138.08,3.6245]
[1728577727078,3.624,138.1,138.05,0.12502]
[1728577727292,3.6244,138.09,138.05,0.12502]
[1728577727588,23.15,138.12,138.05,0.12502]
[1728577727787,23.15,138.12,138.05,3.75012]
[1728577729482,3.6245,138.09,138.05,3.75012]
[1728577731805,3.625,138.06,138.05,0.12502]
[1728577734394,5.78,138.09,138.05,0.12502]
[1728577735495,3.625,138.06,138.05,0.12502]
[1728577737716,3.626,138.03,138.01,3.6262]
[1728577737926,9.33915834,138.06,138.01,3.6262]
[1728577738206,9.33915834,138.06,137.97,27.4127]
[1728577738605,3.6257,138.04,138.02,3.6261]
[1728577739115,9.405,138.06,138.04,3.6255]
[1728577740018,9.405,138.06,138.01,17.37]
[1728577740213,3.625,138.06,138.01,17.37]
[1728577740612,3.6244,138.09,138.03,17.37]
[1728577740909,5.78,138.1,138.02,5.78]
[1728577741304,17.37,138.09,138.02,9.4059]
[1728577741504,17.37,138.09,138.02,3.6259]
[1728577741707,3.6258,138.03,137.99,0.12502]
[1728577741907,3.6258,138.03,138.0,3.6264]
[1728577742208,9.38815675,138.05,138.0,3.6264]
[1728577742407,3.6261,138.02,138.0,3.6264]
[1728577743017,9.38815675,138.05,137.99,0.12502]
[1728577743212,3.6266,138.0,137.99,0.12502]
[1728577743402,9.38815675,138.05,137.99,0.12502]
[1728577744297,17.37,138.04,137.99,0.12502]
[1728577744808,3.6266,138.0,137.99,0.12502]
[1728577746384,20.9966,138.0,137.99,0.12502]
[1728577747790,3.6266,138.0,137.99,0.12502]
[1728577748085,3.6264,138.01,137.99,0.12502]
[1728577748487,23.15,138.02,137.99,0.12502]
[1728577748992,3.6266,138.0,137.99,0.12502]
[1728577756593,14.7766,138.0,137.99,0.12502]
[1728577756989,11.15,138.0,137.93,2.85112]
[1728577757182,14.7776,137.96,137.93,2.85112]
[1728577757692,14.7776,137.96,137.93,6.47942]
[1728577757895,14.7776,137.96,137.93,0.12502]
[1728577758194,3.628,137.95,137.93,3.75322]
[1728577758996,3.628,137.95,137.91,11.15]
[1728577758997,5.78,137.94,137.81,0.12502]
[1728577759195,11.15,137.92,137.87,11.27502]
[1728577759500,11.15,137.92,137.87,0.12502]
[1728577759501,11.15,137.91,137.87,0.12502]
[1728577759699,16.93,137.92,137.87,0.12502]
[1728577759890,16.93,137.92,137.88,11.15]
[1728577760091,4.88930782,137.97,137.88,11.15]
[1728577760293,16.93,137.96,137.91,11.15]
[1728577760794,3.6282,137.94,137.91,14.7788]
[1728577760996,5.78,137.95,137.91,14.7788]
[1728577761191,11.15,137.94,137.87,5.90502]
[1728577761391,5.78,137.95,137.88,11.15]
[1728577761591,11.15,137.93,137.88,11.15]
[1728577761794,16.93,137.92,137.87,0.12502]
[1728577762396,3.6292,137.9,137.88,3.6297]
[1728577762698,16.93,137.92,137.88,3.6297]
[1728577762900,3.629,137.91,137.88,3.6295]
[1728577763301,0.122,137.97,137.87,11.27502]
[1728577763503,14.7788,137.92,137.89,3.6293]
[1728577763698,20.5588,137.92,137.89,3.6293]
[1728577764201,3.6292,137.9,137.88,3.6296]
[1728577764408,3.6292,137.9,137.87,0.12502]
[1728577764608,3.6292,137.9,137.87,3.75482]
[1728577764903,3.66844223,137.91,137.87,3.75482]
[1728577765104,23.2,137.92,137.87,0.12502]
[1728577765697,3.58532426,137.91,137.87,0.12502]
[1728577765894,23.2,137.92,137.87,0.12502]
[1728577767103,17.42,137.91,137.87,0.12502]
[1728577767303,3.6297,137.88,137.87,0.12502]
[1728577767705,9.4097,137.88,137.87,0.12502]
[1728577768013,3.6293,137.9,137.87,3.75492]
[1728577768302,5.78,137.89,137.87,0.12502]
[1728577769099,17.42,137.92,137.87,0.12502]
[1728577769307,5.78,137.91,137.87,0.12502]
[1728577769505,3.6294,137.9,137.87,3.75492]
[1728577770605,5.78,137.91,137.89,3.6293]
[1728577770805,17.42,137.94,137.87,0.12502]
[1728577771001,5.78,137.93,137.87,0.12502]
[1728577771302,9.4087,137.93,137.9,3.6291]
[1728577771507,20.99500576,137.98,137.89,17.42]
[1728577771707,5.78,137.97,137.9,1.4574]
[1728577771909,5.78,137.97,137.9,2.868]
[1728577772105,3.628,137.95,137.92,3.6285]
[1728577772311,3.57370358,137.96,137.9,2.868]
[1728577772708,3.6284,137.93,137.9,6.497]
[1728577772909,5.78,137.97,137.9,2.868]
[1728577773308,3.6279,137.95,137.9,2.868]
[1728577773512,5.78,137.96,137.9,2.868]
[1728577773908,9.4078,137.96,137.93,3.6282]
[1728577774212,5.78,137.96,137.93,3.6282]
[1728577774613,9.4078,137.96,137.93,3.6282]
[1728577774803,5.78,137.96,137.93,3.6282]
[1728577776016,5.78,137.96,137.9,2.868]
[1728577776217,3.6281,137.95,137.92,3.6285]
[1728577777117,3.6281,137.95,137.93,3.6284]
[1728577778522,5.78,137.96,137.94,3.628]
[1728577779923,9.4076,137.97,137.94,3.628]
[1728577780720,3.6277,137.96,137.94,3.628]
[1728577781822,9.4075,137.97,137.94,3.628]
[1728577782518,78.32,138.0,137.91,17.42]
[1728577782822,5.78,137.98,137.91,17.42]
[1728577783121,5.78,137.98,137.93,3.6282]
[1728577784220,23.2,137.98,137.92,3.6286]
[1728577784432,23.2,137.98,137.9,20.288]
[1728577784727,17.42,137.96,137.9,2.868]
[1728577785023,3.6283,137.94,137.91,3.6289]
[1728577785220,9.4083,137.94,137.91,3.6289]
[1728577785719,9.4083,137.94,137.9,2.868]
[1728577785920,9.4083,137.94,137.91,3.6288]
[1728577786420,3.6285,137.93,137.91,14.7888]
[1728577787418,9.4082,137.94,137.92,3.6284]
[1728577787914,11.16,137.95,137.92,3.6284]
[1728577788120,9.408,137.95,137.92,14.7884]
[1728577789325,3.6282,137.94,137.92,14.7884]
[1728577790730,9.408,137.95,137.92,14.7884]
[1728577791124,3.68110674,137.99,137.95,3.6278]
[1728577791325,20.5672,137.98,137.95,3.6278]
[1728577794426,14.7872,137.98,137.95,3.6278]
[1728577794618,20.5672,137.98,137.95,3.6278]
[1728577795023,20.5672,137.98,137.95,3.6277]
[1728577796835,3.68110674,137.99,137.95,11.16]
[1728577797125,9.46110674,137.99,137.95,11.16]
[1728577797330,20.62110674,137.99,137.94,11.16]
[1728577797520,3.6271,137.98,137.94,11.16]
[1728577797832,20.62110674,137.99,137.94,11.16]
[1728577798030,24.24820674,137.99,137.96,3.6276]
[1728577798824,13.08820674,137.99,137.96,3.6276]
[1728577799031,3.6271,137.98,137.96,3.6276]
[1728577800332,0.12502,137.99,137.97,11.16]
[1728577800635,0.12502,137.99,137.98,11.16]
[1728577801335,0.12502,137.99,137.98,14.7871]
[1728577802129,0.12502,137.99,137.98,3.6271]
[1728577802331,0.12502,137.99,137.93,1.381]
[1728577802536,3.6272,137.98,137.95,11.16]
[1728577802829,0.12502,137.99,137.97,3.6274]
[1728577803026,3.75192,137.99,137.97,3.6274]
[1728577803632,0.12502,137.99,137.98,14.7871]
[1728577804841,0.12502,137.99,137.97,1.3261]
[1728577805133,0.12502,137.99,137.98,14.7871]
[1728577806833,0.12502,138.05,137.98,11.16]
[1728577807030,0.12502,138.05,138.04,11.16]
[1728577807534,3.75032,138.05,138.04,11.16]
[1728577807847,0.12502,138.05,138.04,11.16]
[1728577808137,11.28502,138.05,137.98,1.4051]
[1728577808333,11.16,138.03,137.98,12.5651]
[1728577808636,3.6266,138.01,137.98,12.5651]
[1728577808827,16.92,138.04,137.99,11.16]
[1728577809232,3.6262,138.02,137.99,14.7866]
[1728577809836,3.6262,138.02,137.99,11.16]
[1728577810039,3.6262,138.02,138.0,3.6266]
[1728577810437,3.6259,138.03,138.0,3.6266]
[1728577811340,3.626,138.03,138.0,3.6266]
[1728577811539,3.626,138.03,138.0,3.6265]
[1728577811938,3.6261,138.02,138.0,3.6265]
[1728577812238,11.16,138.02,137.98,5.032]
[1728577812442,23.18,138.04,137.98,5.032]
[1728577812840,23.18,138.04,137.95,3.6277]
[1728577812841,17.42,138.02,137.95,3.6277]
[1728577813056,17.42,138.0,137.93,0.12502]
[1728577813235,5.76,137.99,137.93,0.12502]
[1728577813437,3.6279,137.96,137.93,3.75332]
[1728577813744,3.6279,137.96,137.93,0.12502]
[1728577813940,5.76,137.99,137.93,0.12502]
[1728577814247,5.76,137.99,137.95,3.6278]
[1728577814848,3.6272,137.98,137.95,3.6278]
[1728577815049,5.76,137.99,137.95,3.6278]
[1728577815540,3.6272,137.98,137.95,3.6278]
[1728577815952,5.76,137.99,137.93,0.12502]
[1728577816247,17.42,137.98,137.93,0.12502]
[1728577817246,5.76,137.99,137.93,17.54502]
[1728577817744,3.6275,137.97,137.94,9.76257953]
[1728577817946,5.76,137.99,137.93,17.54502]
[1728577818150,23.18,137.99,137.93,0.12502]
[1728577818356,3.6282,137.94,137.93,0.12502]
[1728577818647,9.3882,137.94,137.93,0.12502]
[1728577819153,3.6293,137.9,137.88,1.4403]
[1728577819536,17.42,137.93,137.89,3.6295]
[1728577819943,3.6288,137.92,137.89,3.6295]
[1728577820449,17.42,137.93,137.87,2.93912]
[1728577821054,3.6292,137.9,137.87,6.56902]
[1728577821649,3.6292,137.9,137.87,1.55382]
[1728577822353,3.6296,137.89,137.87,1.55382]
[1728577822748,3.6296,137.89,137.87,5.18382]
[1728577824640,3.6297,137.88,137.87,0.12502]
[1728577825543,5.76,137.91,137.87,0.12502]
[1728577826751,3.6297,137.88,137.87,0.12502]
[1728577831074,26.8097,137.88,137.83,0.12518]
[1728577831353,3.6308,137.84,137.83,0.12518]
[1728577832447,14.7908,137.84,137.83,0.12518]
[1728577833356,3.6313,137.82,137.81,0.12502]
[1728577833655,16.92,137.82,137.75,11.28502]
[1728577833852,11.16,137.79,137.76,6.13381672]
[1728577834152,11.16,137.81,137.76,11.16]
[1728577834464,5.76,137.82,137.78,11.16]
[1728577834652,5.76,137.82,137.8,3.6317]
[1728577835348,5.76,137.82,137.79,3.6319]
[1728577835554,17.44,137.86,137.77,17.44]
[1728577835756,0.12502,137.87,137.78,17.44]
[1728577835957,5.76,137.86,137.83,3.631]
[1728577836453,5.76,137.86,137.8,17.44]
[1728577836653,9.3905,137.86,137.82,3.6311]
[1728577836842,9.3905,137.86,137.8,17.44]
[1728577836843,5.76,137.86,137.8,17.44]
[1728577837051,9.3904,137.86,137.81,3.6314]
[1728577837243,5.76,137.86,137.8,17.44]
[1728577837652,3.6307,137.85,137.8,17.44]
[1728577838253,3.6309,137.84,137.79,8.5442]
[1728577838852,3.6309,137.84,137.81,3.6315]
[1728577839454,3.6309,137.84,137.79,8.5442]
[1728577839655,5.76,137.86,137.79,8.5442]
[1728577840057,9.39544369,137.86,137.79,8.5442]
[1728577840259,3.6314,137.82,137.79,8.5442]
[1728577840466,26.83544369,137.86,137.8,3.6316]
[1728577841161,3.6312,137.83,137.8,3.6316]
[1728577841664,23.2,137.83,137.76,1.4438]
[1728577841867,23.2,137.83,137.75,0.12502]
[1728577842157,23.2,137.83,137.78,3.6323]
[1728577842158,3.6318,137.81,137.78,3.6323]
[1728577842364,23.2,137.83,137.75,0.12502]
[1728577842762,3.632,137.8,137.77,3.6325]
[1728577843668,23.2,137.83,137.76,3.6327]
[1728577844161,3.632,137.8,137.76,3.6327]
[1728577844368,3.632,137.8,137.77,3.6325]
[1728577845166,23.2,137.83,137.75,0.12502]
[1728577845379,23.2,137.83,137.75,3.75802]
[1728577845664,5.76,137.83,137.75,0.12502]
[1728577845868,23.2,137.83,137.75,0.12502]
[1728577846167,3.632,137.8,137.75,0.12502]
[1728577847068,17.44,137.81,137.75,0.12502]
[1728577847272,5.76,137.8,137.75,0.12502]
[1728577848067,5.76,137.83,137.8,3.6318]
[1728577848567,5.76,137.83,137.79,3.6321]
[1728577849066,5.76,137.83,137.77,1.4042]
[1728577849265,5.76,137.83,137.81,3.6314]
[1728577849564,3.6308,137.84,137.78,1.4366]
[1728577849769,5.76,137.85,137.78,2.7914]
[1728577849962,3.6315,137.82,137.78,2.7914]
[1728577850163,23.2,137.85,137.78,2.7914]
[1728577850461,17.44,137.83,137.77,1.4042]
[1728577850759,5.76,137.82,137.77,1.4042]
[1728577851967,5.76,137.82,137.77,5.0367]
[1728577852464,3.6318,137.81,137.77,1.4042]
[1728577852657,5.76,137.82,137.77,1.4042]
[1728577853253,5.76,137.82,137.76,1.3807]
[1728577853459,5.76,137.82,137.75,0.12502]
[1728577853460,3.6327,137.77,137.75,0.12502]